[Event "RUS-chT Blitz Men 2018"]
[Site "Sochi"]
[Date "2018.10.10"]
[Round "11"]
[White "Linker, Mikhail"]
[Black "Dilmukhametov, Artur"]
[Result "1-0"]
[ECO "D11"]
[WhiteElo "2269"]
[BlackElo "2353"]
[Annotator "NA"]
[PlyCount "63"]
[EventDate "2018.10.10"]
[EventType "swiss"]
[EventCountry "RUS"]
[SourceTitle "playchess.com"]
[Source "ChessBase"]
[SourceQuality "1"]
[TimeControl "180+2"]

1. d4 {[%emt 0:00:00]} d5 {[%emt 0:00:00]} 2. c4 {[%emt 0:00:01]} c6 {[%emt 0:00:00]} 3. Nf3 {[%emt 0:00:01]} Nf6 {[%emt 0:00:01]} 4. e3 {[%emt 0:00:01]} a6 {[%emt 0:00:02]} 5. Nc3 {[%emt 0:00:02]} Bf5 {[%emt 0:00:01]} 6. Qb3 {[%emt 0:00:02]} Ra7 {[%emt 0:00:03]} 7. a4 {[%emt 0:00:12]} e6 {[%emt 0:00:03]} 8. a5 {[%emt 0:00:01]} Nbd7 {[%emt 0:00:01]} 9. c5 {[%emt 0:00:01]} Ne4 {[%emt 0:00:07]} 10. Na4 {[%emt 0:00:20]} Qxa5+ {[%emt 0:00:16]} 11. Bd2 {[%emt 0:00:08]} Nxd2 {[%emt 0:00:06]} 12. Nxd2 {[%emt 0:00:01]} Be7 {[%emt 0:00:19]} 13. Bd3 {[%emt 0:00:11]} O-O {[%emt 0:00:12]} 14. Bxf5 {[%emt 0:00:09]} exf5 {[%emt 0:00:01]} 15. O-O {[%emt 0:00:02]} Qxd2 {[%emt 0:00:26]} 16. Nc3 {[%emt 0:00:24]} Qd3 {[%emt 0:00:12]} 17. Ra4 {[%emt 0:00:05]} f4 {[%emt 0:00:03]} 18. e4 {[%emt 0:00:03]} Nxc5 {[%emt 0:01:09]} 19. dxc5 {[%emt 0:00:01]} Bxc5 {[%emt 0:00:01]} 20. Rd1 {[%emt 0:00:10]} Bxf2+ {[%emt 0:00:01]} 21. Kxf2 {[%emt 0:00:01]} Qe3+ {[%emt 0:00:00]} 22. Kf1 {[%emt 0:00:00]} f3 {[%emt 0:00:02]} 23. Qc2 {[%emt 0:00:11]} b5 {[%emt 0:00:11]} 24. Rad4 {[%emt 0:00:07]} fxg2+ {[%emt 0:00:08]} 25. Kxg2 {[%emt 0:00:04]} dxe4 {[%emt 0:00:09]} 26. Qxe4 {[%emt 0:00:05]} Qg5+ {[%emt 0:00:01]} 27. Kh1 {[%emt 0:00:01]} Re7 {[%emt 0:00:02]} 28. Qg2 {[%emt 0:00:02]} Qh5 {[%emt 0:00:03]} 29. Ne4 {[%emt 0:00:13]} Rfe8 {[%emt 0:00:02]} 30. Nf6+ {[%emt 0:00:01]} Kf8 {[%emt 0:00:07]} 31. Nxh5 {[%emt 0:00:02]} Re1+ {[%emt 0:00:01]} 32. Rxe1 {[%emt 0:00:04]} 1-0

[Event "RUS-chT Blitz Men 2018"]
[Site "Sochi"]
[Date "2018.10.10"]
[Round "11"]
[White "Taysayev, Timur"]
[Black "Shkurkin, Andrey"]
[Result "1-0"]
[ECO "B38"]
[WhiteElo "2225"]
[BlackElo "2201"]
[Annotator "NA"]
[PlyCount "77"]
[EventDate "2018.10.10"]
[EventType "swiss"]
[EventCountry "RUS"]
[SourceTitle "playchess.com"]
[Source "ChessBase"]
[SourceQuality "1"]
[TimeControl "180+2"]

1. e4 {[%emt 0:00:00]} c5 {[%emt 0:00:00]} 2. Nf3 {[%emt 0:00:01]} g6 {[%emt 0:00:00]} 3. d4 {[%emt 0:00:01]} cxd4 {[%emt 0:00:01]} 4. Nxd4 {[%emt 0:00:01]} Bg7 {[%emt 0:00:01]} 5. c4 {[%emt 0:00:01]} Nc6 {[%emt 0:00:01]} 6. Be3 {[%emt 0:00:02]} Nf6 {[%emt 0:00:02]} 7. Nc3 {[%emt 0:00:03]} O-O {[%emt 0:00:03]} 8. Be2 {[%emt 0:00:01]} d6 {[%emt 0:00:01]} 9. O-O {[%emt 0:00:03]} Bd7 {[%emt 0:00:02]} 10. Qd2 {[%emt 0:00:04]} Nxd4 {[%emt 0:00:03]} 11. Bxd4 {[%emt 0:00:02]} Bc6 {[%emt 0:00:02]} 12. Bd3 {[%emt 0:00:03]} Nd7 {[%emt 0:00:20]} 13. Be3 {[%emt 0:00:29]} a5 {[%emt 0:00:03]} 14. b3 {[%emt 0:00:08]} Nc5 {[%emt 0:00:04]} 15. Bc2 {[%emt 0:00:02]} Qb6 {[%emt 0:00:06]} 16. Rfb1 {[%emt 0:00:26]} Qb4 {[%emt 0:00:53]} 17. Bd4 {[%emt 0:00:12]} Rfc8 {[%emt 0:00:35]} 18. a3 {[%emt 0:00:06]} Qb6 {[%emt 0:00:04]} 19. Nd5 {[%emt 0:00:17]} Bxd5 {[%emt 0:00:02]} 20. exd5 {[%emt 0:00:02]} Bxd4 {[%emt 0:00:04]} 21. Qxd4 {[%emt 0:00:01]} Nd7 {[%emt 0:00:09]} 22. Qe4 {[%emt 0:00:10]} Kf8 {[%emt 0:00:18]} 23. Re1 {[%emt 0:00:03]} Qd8 {[%emt 0:00:09]} 24. Re3 {[%emt 0:00:19]} Nf6 {[%emt 0:00:13]} 25. Qd4 {[%emt 0:00:09]} b5 {[%emt 0:00:06]} 26. Bd3 {[%emt 0:00:10]} bxc4 {[%emt 0:00:06]} 27. Bxc4 {[%emt 0:00:01]} Rc5 {[%emt 0:00:11]} 28. Rae1 {[%emt 0:00:07]} Ra7 {[%emt 0:00:02]} 29. g4 {[%emt 0:00:08]} Rac7 {[%emt 0:00:12]} 30. g5 {[%emt 0:00:03]} Ng8 {[%emt 0:00:01]} 31. a4 {[%emt 0:00:05]} Qd7 {[%emt 0:00:02]} 32. Qh4 {[%emt 0:00:06]} Qf5 {[%emt 0:00:02]} 33. Kg2 {[%emt 0:00:03]} Rxd5 {[%emt 0:00:04]} 34. Bxd5 {[%emt 0:00:05]} Qxd5+ {[%emt 0:00:01]} 35. Kg3 {[%emt 0:00:07]} Rc5 {[%emt 0:00:02]} 36. f4 {[%emt 0:00:09]} Rc2 {[%emt 0:00:01]} 37. Qh3 {[%emt 0:00:15]} Rb2 {[%emt 0:00:03]} 38. Qc8+ {[%emt 0:00:04]} Kg7 {[%emt 0:00:02]} 39. Qc3+ {[%emt 0:00:01]} 1-0

[Event "RUS-chT Blitz Men 2018"]
[Site "Sochi"]
[Date "2018.10.10"]
[Round "11"]
[White "Klimentov, Evgeny"]
[Black "Garifullina, Leya"]
[Result "1/2-1/2"]
[ECO "C07"]
[WhiteElo "2135"]
[BlackElo "1962"]
[Annotator "NA"]
[PlyCount "86"]
[EventDate "2018.10.10"]
[EventType "swiss"]
[EventCountry "RUS"]
[SourceTitle "playchess.com"]
[Source "ChessBase"]
[SourceQuality "1"]
[TimeControl "180+2"]

1. e4 {[%emt 0:00:02]} e6 {[%emt 0:00:02]} 2. d4 {[%emt 0:00:02]} d5 {[%emt 0:00:01]} 3. Nd2 {[%emt 0:00:02]} c5 {[%emt 0:00:05]} 4. Ngf3 {[%emt 0:00:02]} cxd4 {[%emt 0:00:01]} 5. Nxd4 {[%emt 0:00:02]} Nf6 {[%emt 0:00:19]} 6. Bd3 {[%emt 0:00:13]} Nc6 {[%emt 0:00:09]} 7. Nxc6 {[%emt 0:00:09]} bxc6 {[%emt 0:00:02]} 8. O-O {[%emt 0:00:02]} Be7 {[%emt 0:00:08]} 9. c4 {[%emt 0:00:06]} O-O {[%emt 0:00:34]} 10. b3 {[%emt 0:00:06]} d4 {[%emt 0:00:52]} 11. e5 {[%emt 0:00:07]} Nd7 {[%emt 0:00:02]} 12. Qh5 {[%emt 0:00:15]} g6 {[%emt 0:00:00]} 13. Qe2 {[%emt 0:00:02]} Nc5 {[%emt 0:00:13]} 14. Ne4 {[%emt 0:00:05]} Nxd3 {[%emt 0:00:07]} 15. Qxd3 {[%emt 0:00:02]} c5 {[%emt 0:00:01]} 16. g3 {[%emt 0:00:29]} Bb7 {[%emt 0:00:01]} 17. h4 {[%emt 0:00:02]} Bxe4 {[%emt 0:00:12]} 18. Qxe4 {[%emt 0:00:02]} h5 {[%emt 0:00:06]} 19. Rd1 {[%emt 0:00:09]} Rb8 {[%emt 0:00:10]} 20. Rd3 {[%emt 0:00:02]} Qc7 {[%emt 0:00:05]} 21. Bd2 {[%emt 0:00:05]} Rfc8 {[%emt 0:00:12]} 22. Re1 {[%emt 0:00:04]} a5 {[%emt 0:00:11]} 23. a4 {[%emt 0:00:02]} Rb7 {[%emt 0:00:02]} 24. Kh2 {[%emt 0:00:09]} Rcb8 {[%emt 0:00:01]} 25. Qf3 {[%emt 0:00:01]} Bd8 {[%emt 0:00:03]} 26. Re4 {[%emt 0:00:03]} Qc6 {[%emt 0:00:02]} 27. Kg1 {[%emt 0:00:53]} Kg7 {[%emt 0:00:04]} 28. Rf4 {[%emt 0:00:10]} Qxf3 {[%emt 0:00:01]} 29. Rfxf3 {[%emt 0:00:01]} Rc8 {[%emt 0:00:04]} 30. Kg2 {[%emt 0:00:03]} Rcb8 {[%emt 0:00:01]} 31. Kf1 {[%emt 0:00:04]} Rc8 {[%emt 0:00:01]} 32. Ke2 {[%emt 0:00:01]} Rcb8 {[%emt 0:00:00]} 33. Kd1 {[%emt 0:00:02]} Ra8 {[%emt 0:00:02]} 34. Kc2 {[%emt 0:00:02]} Bc7 {[%emt 0:00:02]} 35. Bf4 {[%emt 0:00:02]} Rab8 {[%emt 0:00:01]} 36. Rd1 {[%emt 0:00:03]} Kf8 {[%emt 0:00:02]} 37. Re1 {[%emt 0:00:03]} Ke8 {[%emt 0:00:01]} 38. Bd2 {[%emt 0:00:07]} Bd8 {[%emt 0:00:01]} 39. Rd3 {[%emt 0:00:03]} Bc7 {[%emt 0:00:01]} 40. Bg5 {[%emt 0:00:04]} Bd8 {[%emt 0:00:01]} 41. Bd2 {[%emt 0:00:05]} Bc7 {[%emt 0:00:01]} 42. Rf3 {[%emt 0:00:04]} Bd8 {[%emt 0:00:01]} 43. Rd3 {[%emt 0:00:05]} Bc7 {[%emt 0:00:01]} 1/2-1/2

[Event "RUS-chT Blitz Men 2018"]
[Site "Sochi"]
[Date "2018.10.10"]
[Round "11"]
[White "Kuzmin, Roman"]
[Black "Tatarintsev, Egor"]
[Result "0-1"]
[ECO "C04"]
[WhiteElo "1855"]
[BlackElo "2086"]
[Annotator "NA"]
[PlyCount "52"]
[EventDate "2018.10.10"]
[EventType "swiss"]
[EventCountry "RUS"]
[SourceTitle "playchess.com"]
[Source "ChessBase"]
[SourceQuality "1"]
[TimeControl "180+2"]

1. e4 {[%emt 0:00:00]} e6 {[%emt 0:00:00]} 2. d4 {[%emt 0:00:00]} d5 {[%emt 0:00:00]} 3. Nd2 {[%emt 0:00:01]} Nc6 {[%emt 0:00:01]} 4. Ngf3 {[%emt 0:00:22]} Nf6 $14 {[%emt 0:00:01]} 5. e5 {[%emt 0:00:04]} Nd7 {[%emt 0:00:01]} 6. c3 {[%emt 0:00:26]} f6 {[%emt 0:00:00]} 7. exf6 Qxf6 {[%emt 0:00:02]} 8. Bd3 {[%emt 0:01:00]} Bd6 {[%emt 0:00:05]} 9. Qc2 {[%emt 0:00:08]} e5 {[%emt 0:00:14]} 10. dxe5 {[%emt 0:00:09]} Ndxe5 {[%emt 0:00:03]} 11. O-O {[%emt 0:00:16]} Bg4 {[%emt 0:00:43]} 12. Nxe5 {[%emt 0:00:33]} Nxe5 {[%emt 0:00:25]} 13. Re1 {[%emt 0:00:17]} O-O-O {[%emt 0:00:07]} 14. Nf1 {[%emt 0:00:03]} Rdf8 {[%emt 0:00:32]} 15. Be3 {[%emt 0:00:05]} Bd7 {[%emt 0:00:35]} 16. Bd4 {[%emt 0:00:05]} Qg5 {[%emt 0:00:08]} 17. Bxe5 {[%emt 0:00:02]} Bxe5 {[%emt 0:00:01]} 18. Ng3 {[%emt 0:00:02]} h5 {[%emt 0:00:05]} 19. h4 {[%emt 0:00:01]} Qf6 {[%emt 0:00:07]} 20. Re3 {[%emt 0:00:03]} Bf4 {[%emt 0:00:04]} 21. Re2 {[%emt 0:00:02]} Qxh4 {[%emt 0:00:04]} 22. Bf5 {[%emt 0:00:02]} Bxf5 {[%emt 0:00:07]} 23. Qa4 {[%emt 0:00:02]} Bxg3 {[%emt 0:00:04]} 24. Re4 {[%emt 0:00:02]} Bxe4 {[%emt 0:00:07]} 25. Qxa7 {[%emt 0:00:02]} Bxf2+ {[%emt 0:00:01]} 26. Kf1 {[%emt 0:00:01]} Bxa7+ {[%emt 0:00:02] Ke1} 0-1

[Event "RUS-chT Blitz Men 2018"]
[Site "Sochi"]
[Date "2018.10.10"]
[Round "11"]
[White "Pingin, Artem"]
[Black "Rudakov, Sergey S."]
[Result "1-0"]
[ECO "C41"]
[WhiteElo "1761"]
[BlackElo "1733"]
[Annotator "NA"]
[PlyCount "69"]
[EventDate "2018.10.10"]
[EventType "swiss"]
[EventCountry "RUS"]
[SourceTitle "playchess.com"]
[Source "ChessBase"]
[SourceQuality "1"]
[TimeControl "180+2"]

1. e4 {[%emt 0:00:00]} e5 {[%emt 0:00:00]} 2. Nf3 {[%emt 0:00:00]} d6 {[%emt 0:00:00]} 3. d4 {[%emt 0:00:01]} exd4 {[%emt 0:00:01]} 4. Nxd4 {[%emt 0:00:01]} Nf6 {[%emt 0:00:01]} 5. Nc3 {[%emt 0:00:01]} Be7 {[%emt 0:00:02]} 6. Be3 {[%emt 0:00:06]} O-O {[%emt 0:00:02]} 7. f3 {[%emt 0:00:07]} a6 {[%emt 0:00:01]} 8. Qd2 {[%emt 0:00:01]} b5 {[%emt 0:00:02]} 9. a3 {[%emt 0:00:04]} Bb7 {[%emt 0:00:02]} 10. Be2 {[%emt 0:00:01]} Nbd7 {[%emt 0:00:04]} 11. O-O {[%emt 0:00:15]} Nb6 {[%emt 0:00:02]} 12. Nf5 {[%emt 0:00:02]} Nfd7 {[%emt 0:00:08]} 13. Nxe7+ {[%emt 0:00:39]} Qxe7 {[%emt 0:00:02]} 14. Bf2 {[%emt 0:00:06]} Rfe8 {[%emt 0:00:09]} 15. Rad1 {[%emt 0:00:06]} Rad8 {[%emt 0:00:10]} 16. Rfe1 {[%emt 0:00:10]} h6 {[%emt 0:00:09]} 17. Bf1 {[%emt 0:00:05]} Nc8 {[%emt 0:00:11]} 18. a4 {[%emt 0:00:09]} b4 {[%emt 0:00:01]} 19. Nd5 {[%emt 0:00:01]} Bxd5 {[%emt 0:00:04]} 20. exd5 {[%emt 0:00:02]} Qf6 {[%emt 0:00:03]} 21. Qxb4 {[%emt 0:00:04]} Ncb6 {[%emt 0:00:12]} 22. a5 {[%emt 0:00:07]} Na8 {[%emt 0:00:14]} 23. b3 {[%emt 0:00:08]} Nc5 {[%emt 0:00:03]} 24. Bxc5 {[%emt 0:00:10]} dxc5 {[%emt 0:00:00]} 25. Qxc5 {[%emt 0:00:01]} Re5 {[%emt 0:00:20]} 26. Qc6 {[%emt 0:00:19]} Qe7 {[%emt 0:00:04]} 27. Rxe5 {[%emt 0:00:06]} Qxe5 {[%emt 0:00:02]} 28. Bxa6 {[%emt 0:00:11]} Qe3+ {[%emt 0:00:09]} 29. Kh1 {[%emt 0:00:01]} Re8 {[%emt 0:00:04]} 30. Bf1 {[%emt 0:00:08]} Qa7 {[%emt 0:00:12]} 31. b4 {[%emt 0:00:04]} Rd8 {[%emt 0:00:02]} 32. c4 {[%emt 0:00:13]} Rd6 {[%emt 0:00:15]} 33. Qe8+ {[%emt 0:00:01]} Kh7 {[%emt 0:00:01]} 34. Bd3+ {[%emt 0:00:01]} g6 {[%emt 0:00:05]} 35. Qxf7+ {[%emt 0:00:01]} 1-0

[Event "RUS-chT Blitz Men 2018"]
[Site "Sochi"]
[Date "2018.10.10"]
[Round "11"]
[White "Popov, Maksim"]
[Black "Kharitonov, Egor"]
[Result "1-0"]
[ECO "B22"]
[WhiteElo "1570"]
[BlackElo "1686"]
[Annotator "NA RC"]
[PlyCount "96"]
[EventDate "2018.10.10"]
[EventType "swiss"]
[EventCountry "RUS"]
[SourceTitle "playchess.com"]
[Source "ChessBase"]
[SourceQuality "1"]
[TimeControl "180+2"]

1. e4 {[%emt 0:00:00]} c5 {[%emt 0:00:00]} 2. c3 {[%emt 0:00:01]} Nf6 {[%emt 0:00:00]} 3. e5 {[%emt 0:00:00]} Nd5 {[%emt 0:00:01]} 4. d4 {[%emt 0:00:01]} cxd4 {[%emt 0:00:01]} 5. cxd4 {[%emt 0:00:00]} d6 {[%emt 0:00:01]} 6. Nf3 {[%emt 0:00:06]} e6 {[%emt 0:00:01]} 7. Bc4 {[%emt 0:00:11]} Nb6 {[%emt 0:00:01]} 8. Bb3 {[%emt 0:00:01]} dxe5 {[%emt 0:00:07]} 9. Nxe5 {[%emt 0:00:07]} Nc6 {[%emt 0:00:01]} 10. Nf3 {[%emt 0:00:14]} Be7 {[%emt 0:00:03]} 11. O-O {[%emt 0:00:02]} O-O {[%emt 0:00:02]} 12. Nc3 {[%emt 0:00:05]} Bf6 {[%emt 0:00:20]} 13. Be3 {[%emt 0:00:01]} Nb4 {[%emt 0:00:10]} 14. a3 {[%emt 0:00:06]} N4d5 {[%emt 0:00:01]} 15. Qd3 {[%emt 0:00:07]} Bd7 {[%emt 0:00:28]} 16. Bc2 {[%emt 0:00:02]} g6 {[%emt 0:00:01]} 17. Rfd1 {[%emt 0:00:26]} Bc6 {[%emt 0:00:03]} 18. Rac1 {[%emt 0:00:11]} Bg7 {[%emt 0:00:02]} 19. Bb1 {[%emt 0:00:12]} Rc8 {[%emt 0:00:02]} 20. b4 {[%emt 0:00:08]} Nxc3 {[%emt 0:00:05]} 21. Rxc3 {[%emt 0:00:02]} Nd5 {[%emt 0:00:08]} 22. Rcc1 {[%emt 0:00:04]} Ba4 {[%emt 0:00:13]} 23. Rxc8 {[%emt 0:00:02]} Qxc8 {[%emt 0:00:01]} 24. Rc1 {[%emt 0:00:01]} Qd7 {[%emt 0:00:05]} 25. Qc4 {[%emt 0:00:07]} Bb5 {[%emt 0:00:09]} 26. Qc2 {[%emt 0:00:05]} Bc6 {[%emt 0:00:27]} 27. Ba2 {[%emt 0:00:07]} Rd8 {[%emt 0:00:07]} 28. Bxd5 {[%emt 0:00:09]} Qxd5 {[%emt 0:00:04]} 29. Qc5 {[%emt 0:00:23]} Qb3 {[%emt 0:00:03]} 30. Qxa7 {[%emt 0:00:08]} Qb2 {[%emt 0:00:21]} 31. Qb6 {[%emt 0:00:19]} Rd7 {[%emt 0:00:11]} 32. h3 {[%emt 0:00:08]} h6 {[%emt 0:00:13]} 33. Qc5 {[%emt 0:00:14]} Qxa3 {[%emt 0:00:19]} 34. Ne5 {[%emt 0:00:04]} Rd5 {[%emt 0:00:05]} 35. Qe7 {[%emt 0:00:03]} Bxe5 {[%emt 0:00:04]} 36. dxe5 {[%emt 0:00:02]} g5 {[%emt 0:00:07]} 37. Qf6 {[%emt 0:00:03]} Qd3 {[%emt 0:00:04]} 38. Qxh6 {[%emt 0:00:02]} Qg6 {[%emt 0:00:01]} 39. Qxg6+ {[%emt 0:00:04]} fxg6 {[%emt 0:00:01]} 40. Bxg5 {[%emt 0:00:04]} Rxe5 {[%emt 0:00:01]} 41. Be3 {[%emt 0:00:01]} Re4 {[%emt 0:00:01]} 42. Bc5 {[%emt 0:00:02]} Kf7 {[%emt 0:00:02]} 43. Ra1 {[%emt 0:00:01]} Kf6 {[%emt 0:00:02]} 44. Ra8 {[%emt 0:00:02]} Kf5 {[%emt 0:00:06]} 45. Rf8+ {[%emt 0:00:02]} Kg5 {[%emt 0:00:01]} 46. Kh2 {[%emt 0:00:04]} Rc4 {[%emt 0:00:06]} 47. Be7+ {[%emt 0:00:02]} Kh6 {[%emt 0:00:02]} 48. Bf6 {[%emt 0:00:02]} g5 {[%emt 0:00:02]} 1-0

[Event "RUS-chT Blitz Men 2018"]
[Site "Sochi"]
[Date "2018.10.10"]
[Round "12"]
[White "Paravyan, David"]
[Black "Taysayev, Timur"]
[Result "1-0"]
[ECO "A50"]
[WhiteElo "2629"]
[BlackElo "2225"]
[Annotator "RC"]
[PlyCount "89"]
[EventDate "2018.10.10"]
[EventType "swiss"]
[EventCountry "RUS"]
[SourceTitle "playchess.com"]
[Source "ChessBase"]
[SourceQuality "1"]
[TimeControl "180+2"]

1. d4 {[%emt 0:00:00]} Nf6 {[%emt 0:00:00]} 2. c4 {[%emt 0:00:01]} c6 {[%emt 0:00:00]} 3. Nf3 {[%emt 0:00:04]} b5 {[%emt 0:00:16]} 4. cxb5 {[%emt 0:00:10]} cxb5 {[%emt 0:00:01]} 5. e3 {[%emt 0:00:01]} a6 {[%emt 0:00:02]} 6. Bd3 {[%emt 0:00:01]} Bb7 {[%emt 0:00:06]} 7. O-O {[%emt 0:00:03]} e6 {[%emt 0:00:01]} 8. a4 {[%emt 0:00:02]} b4 {[%emt 0:00:04]} 9. Nbd2 {[%emt 0:00:05]} d5 {[%emt 0:00:13]} 10. Ne5 {[%emt 0:00:06]} Nbd7 {[%emt 0:00:02]} 11. Nb3 {[%emt 0:00:08]} Nxe5 {[%emt 0:00:11]} 12. dxe5 {[%emt 0:00:01]} Nd7 {[%emt 0:00:03]} 13. f4 {[%emt 0:00:04]} Nc5 {[%emt 0:00:10]} 14. Nxc5 {[%emt 0:00:06]} Bxc5 {[%emt 0:00:02]} 15. Qh5 {[%emt 0:00:11]} g6 {[%emt 0:00:04]} 16. Qh6 {[%emt 0:00:02]} Bf8 {[%emt 0:00:04]} 17. Qh3 {[%emt 0:00:03]} Bc5 {[%emt 0:00:37]} 18. Bd2 {[%emt 0:00:10]} Qb6 {[%emt 0:00:40]} 19. a5 {[%emt 0:00:02]} Qa7 {[%emt 0:00:02]} 20. Rf3 {[%emt 0:00:34]} Bc6 {[%emt 0:00:12]} 21. Rc1 {[%emt 0:00:05]} Bb5 {[%emt 0:00:04]} 22. Bxb5+ {[%emt 0:00:27]} axb5 {[%emt 0:00:02]} 23. Kh1 {[%emt 0:00:16]} O-O {[%emt 0:00:11]} 24. Qh6 {[%emt 0:00:05]} Rac8 {[%emt 0:00:06]} 25. Rh3 {[%emt 0:00:07]} f5 {[%emt 0:00:01]} 26. exf6 {[%emt 0:00:02]} Rxf6 {[%emt 0:00:01]} 27. Qh4 {[%emt 0:00:05]} Rff8 {[%emt 0:00:07]} 28. Qg4 {[%emt 0:00:06]} Qf7 {[%emt 0:00:12]} 29. Rf3 {[%emt 0:00:03]} Qf5 {[%emt 0:00:02]} 30. Qxf5 {[%emt 0:00:04]} gxf5 {[%emt 0:00:02]} 31. Rff1 {[%emt 0:00:02]} Ba7 {[%emt 0:00:03]} 32. Bxb4 {[%emt 0:00:04]} Bxe3 {[%emt 0:00:02]} 33. Rce1 {[%emt 0:00:10]} d4 {[%emt 0:00:02]} 34. Bxf8 {[%emt 0:00:02]} Kxf8 {[%emt 0:00:03]} 35. a6 {[%emt 0:00:18]} Ra8 {[%emt 0:00:02]} 36. Ra1 {[%emt 0:00:02]} Ke7 {[%emt 0:00:03]} 37. g3 {[%emt 0:00:02]} Kd6 {[%emt 0:00:02]} 38. Kg2 {[%emt 0:00:00]} Kd5 {[%emt 0:00:10]} 39. Kf3 {[%emt 0:00:02]} Kc4 {[%emt 0:00:01]} 40. Ke2 {[%emt 0:00:07]} Kb3 {[%emt 0:00:01]} 41. Kd3 {[%emt 0:00:01]} b4 {[%emt 0:00:03]} 42. Ra5 {[%emt 0:00:04]} Ra7 {[%emt 0:00:02]} 43. Raa1 {[%emt 0:00:09]} h6 {[%emt 0:00:02]} 44. h3 {[%emt 0:00:02]} h5 {[%emt 0:00:01]} 45. h4 {[%emt 0:00:00]} 1-0

[Event "RUS-chT Blitz Men 2018"]
[Site "Sochi"]
[Date "2018.10.10"]
[Round "12"]
[White "Nuristani, Iman"]
[Black "Tereshechkina, Maya"]
[Result "1-0"]
[ECO "E00"]
[WhiteElo "2242"]
[BlackElo "2018"]
[Annotator "NA"]
[PlyCount "65"]
[EventDate "2018.10.10"]
[EventType "swiss"]
[EventCountry "RUS"]
[SourceTitle "playchess.com"]
[Source "ChessBase"]
[SourceQuality "1"]
[TimeControl "180+2"]

1. d4 {[%emt 0:00:00]} Nf6 {[%emt 0:00:00]} 2. c4 {[%emt 0:00:00]} e6 {[%emt 0:00:00]} 3. Nc3 {[%emt 0:00:01]} c5 {[%emt 0:00:01]} 4. d5 {[%emt 0:00:03]} exd5 {[%emt 0:00:01]} 5. cxd5 {[%emt 0:00:01]} Bd6 {[%emt 0:00:01]} 6. Nf3 {[%emt 0:00:02]} O-O {[%emt 0:00:04]} 7. g3 {[%emt 0:00:01]} a6 {[%emt 0:00:02]} 8. a4 {[%emt 0:00:01]} Bc7 {[%emt 0:00:01]} 9. Bg2 {[%emt 0:00:00]} d6 {[%emt 0:00:01]} 10. O-O {[%emt 0:00:01]} Re8 {[%emt 0:00:02]} 11. Nd2 {[%emt 0:00:04]} Nbd7 {[%emt 0:00:07]} 12. Nc4 {[%emt 0:00:02]} Rb8 {[%emt 0:00:21]} 13. a5 {[%emt 0:00:07]} Ne5 {[%emt 0:00:01]} 14. Nxe5 {[%emt 0:00:12]} Rxe5 {[%emt 0:00:21]} 15. Bf4 {[%emt 0:00:01]} Re8 {[%emt 0:00:06]} 16. Re1 {[%emt 0:00:44]} Bxa5 {[%emt 0:00:02]} 17. Rxa5 {[%emt 0:00:29]} Qxa5 {[%emt 0:00:02]} 18. Bxd6 {[%emt 0:00:02]} Ra8 {[%emt 0:00:02]} 19. e4 {[%emt 0:00:00]} Bg4 {[%emt 0:00:09]} 20. Qc1 {[%emt 0:00:15]} b5 {[%emt 0:00:39]} 21. e5 {[%emt 0:00:01]} Nd7 {[%emt 0:00:00]} 22. Qg5 {[%emt 0:00:12]} b4 {[%emt 0:00:26]} 23. Ne4 {[%emt 0:00:01]} b3 {[%emt 0:00:42]} 24. Nc3 {[%emt 0:00:02]} h5 {[%emt 0:00:04]} 25. h3 {[%emt 0:00:01]} f6 {[%emt 0:00:02]} 26. Qg6 {[%emt 0:00:11]} Nxe5 {[%emt 0:00:14]} 27. Rxe5 {[%emt 0:00:33]} fxe5 {[%emt 0:00:06]} 28. hxg4 {[%emt 0:00:02]} Qa1+ {[%emt 0:00:01]} 29. Kh2 {[%emt 0:00:01]} hxg4 {[%emt 0:00:03]} 30. Be4 {[%emt 0:00:11]} Qxb2 {[%emt 0:00:05]} 31. Qh7+ {[%emt 0:00:01]} Kf7 {[%emt 0:00:01]} 32. Qh5+ {[%emt 0:00:01]} Kf6 {[%emt 0:00:09]} 33. Qg6# {[%emt 0:00:01]} 1-0

[Event "RUS-chT Blitz Men 2018"]
[Site "Sochi"]
[Date "2018.10.10"]
[Round "12"]
[White "Ponomarenko, Alexandr"]
[Black "Rozhko, Dmitry"]
[Result "1-0"]
[ECO "B18"]
[WhiteElo "2231"]
[BlackElo "2305"]
[Annotator "NA"]
[PlyCount "48"]
[EventDate "2018.10.10"]
[EventType "swiss"]
[EventCountry "RUS"]
[SourceTitle "playchess.com"]
[Source "ChessBase"]
[SourceQuality "1"]
[TimeControl "180+2"]

1. e4 {[%emt 0:00:00]} c6 {[%emt 0:00:00]} 2. d4 {[%emt 0:00:01]} d5 {[%emt 0:00:00]} 3. Nd2 {[%emt 0:00:02]} dxe4 {[%emt 0:00:00]} 4. Nxe4 {[%emt 0:00:01]} Bf5 {[%emt 0:00:01]} 5. Ng3 {[%emt 0:00:01]} Bg6 {[%emt 0:00:01]} 6. h4 {[%emt 0:00:02]} h6 {[%emt 0:00:01]} 7. h5 {[%emt 0:00:01]} Bh7 {[%emt 0:00:00]} 8. Nf3 {[%emt 0:00:01]} Nd7 {[%emt 0:00:02]} 9. Bd3 {[%emt 0:00:01]} Bxd3 {[%emt 0:00:02]} 10. Qxd3 {[%emt 0:00:02]} e6 {[%emt 0:00:02]} 11. Bd2 {[%emt 0:00:02]} Ngf6 {[%emt 0:00:02]} 12. O-O-O {[%emt 0:00:03]} Bd6 {[%emt 0:00:05]} 13. Ne4 {[%emt 0:00:02]} Nxe4 {[%emt 0:00:05]} 14. Qxe4 {[%emt 0:00:01]} Nf6 {[%emt 0:00:08]} 15. Qe2 {[%emt 0:00:02]} Qc7 {[%emt 0:00:17]} 16. Kb1 {[%emt 0:00:01]} Bf4 {[%emt 0:00:19]} 17. Be3 {[%emt 0:00:20]} Bxe3 {[%emt 0:00:06]} 18. fxe3 {[%emt 0:00:03]} O-O-O {[%emt 0:00:20]} 19. Ne5 {[%emt 0:00:07]} Rhf8 {[%emt 0:00:33]} 20. g4 {[%emt 0:00:14]} Nd7 {[%emt 0:00:11]} 21. Nd3 {[%emt 0:00:11]} e5 {[%emt 0:00:16]} 22. Qg2 {[%emt 0:00:30]} exd4 {[%emt 0:00:05]} 23. exd4 {[%emt 0:00:02]} Qd6 {[%emt 0:00:34]} 24. c3 {[%emt 0:00:09]} Nb6 {[%emt 0:00:38]} 1-0